bitfinex-derivatives/quotes_SOLF0:USTF0_20241002
["timestamp","ask_amount","ask_price","bid_price","bid_amount"]
[1727835229578,9.47,146.14,146.09,9.47]
[1727835229975,9.59502,146.15,146.1,9.47]
[1727835231287,9.59502,146.15,146.13,2.7377]
[1727835231984,9.47,146.14,146.07,2.6015]
[1727835232186,9.47,146.14,146.09,9.47]
[1727835232484,9.47,146.14,146.07,2.6015]
[1727835232688,9.47,146.12,146.08,2.7388]
[1727835233187,9.47,146.12,146.07,9.47]
[1727835233694,2.7383,146.12,146.09,2.7387]
[1727835233875,0.12502,146.15,146.11,9.47]
[1727835234076,2.7381,146.12,146.09,12.2086]
[1727835234283,2.7381,146.12,146.09,2.7386]
[1727835237295,0.12502,146.15,146.11,9.47]
[1727835238186,2.86272,146.15,146.12,2.738]
[1727835238778,0.12502,146.15,146.11,9.47]
[1727835238986,0.12502,146.15,146.14,2.7377]
[1727835240679,0.12502,146.15,146.11,9.47]
[1727835240881,0.12502,146.15,146.12,2.7381]
[1727835241080,0.12502,146.15,146.11,9.47]
[1727835242091,0.12502,146.15,146.13,2.7379]
[1727835242290,0.12502,146.15,146.09,10.844]
[1727835242291,2.7378,146.14,146.09,10.844]
[1727835242493,9.59502,146.15,146.09,10.844]
[1727835242688,9.59502,146.15,146.12,2.738]
[1727835242884,2.7378,146.14,146.12,2.738]
[1727835243084,2.7378,146.14,146.09,10.844]
[1727835243282,2.7378,146.14,146.11,12.2082]
[1727835243486,0.12502,146.15,146.11,9.47]
[1727835243792,2.86262,146.15,146.12,2.7381]
[1727835246694,0.12502,146.15,146.12,2.7381]
[1727835246901,2.7381,146.13,146.1,2.7383]
[1727835247197,9.47,146.12,146.07,9.47]
[1727835247383,9.47,146.09,146.02,1.2718]
[1727835247584,9.47,146.09,146.04,9.47]
[1727835247792,9.47,146.07,146.02,9.47]
[1727835247985,12.2092,146.07,146.04,2.7395]
[1727835248186,9.47,146.07,146.03,9.59502]
[1727835248589,12.2091,146.07,146.04,2.7396]
[1727835249886,2.7394,146.06,146.03,2.86472]
[1727835250797,12.2094,146.06,146.03,2.86472]
[1727835251199,9.47,146.04,146.03,0.12502]
[1727835252395,12.2096,146.04,146.03,0.12502]
[1727835252596,9.47,146.04,145.93,2.7122]
[1727835252801,9.47,145.98,145.92,9.47]
[1727835253294,12.2107,145.98,145.93,2.7416]
[1727835253495,17.5507,145.98,145.93,2.7416]
[1727835253700,17.5507,145.98,145.92,2.7418]
[1727835253901,2.7413,145.96,145.92,2.7418]
[1727835254794,2.7413,145.95,145.91,0.12502]
[1727835254995,2.7413,145.95,145.91,2.86702]
[1727835255499,2.7413,145.95,145.87,14.81]
[1727835255500,14.81,145.92,145.85,0.12502]
[1727835255802,14.81,145.9,145.85,0.12502]
[1727835255992,1.2709,145.91,145.85,0.12502]
[1727835255993,2.7426,145.89,145.85,0.12502]
[1727835256197,16.0809,145.91,145.85,0.12502]
[1727835256701,2.7424,145.9,145.86,2.743]
[1727835256898,19.53440644,145.91,145.85,0.12502]
[1727835257398,19.53440644,145.91,145.86,2.743]
[1727835258108,19.53440644,145.91,145.85,0.12502]
[1727835258302,2.7427,145.88,145.85,0.12502]
[1727835258507,14.81,145.89,145.85,0.12502]
[1727835258707,14.81,145.89,145.85,2.86802]
[1727835259807,14.81,145.89,145.85,0.12502]
[1727835260712,14.81,145.89,145.86,2.743]
[1727835261104,1.3372,145.9,145.85,0.12502]
[1727835261305,1.3859,145.92,145.89,2.7424]
[1727835261509,73.96,145.93,145.85,14.93502]
[1727835261704,73.96,145.93,145.85,0.12502]
[1727835261705,2.7421,145.91,145.85,0.12502]
[1727835261915,2.7421,145.91,145.87,2.7428]
[1727835262105,14.81,145.92,145.87,2.7428]
[1727835262307,17.5519,145.92,145.87,2.7428]
[1727835265319,14.81,145.92,145.85,0.12502]
[1727835265522,76.7017,145.93,145.85,0.12502]
[1727835265708,76.7017,145.93,145.89,2.7424]
[1727835266106,73.96,145.93,145.85,0.12502]
[1727835266413,73.96,145.93,145.91,2.7419]
[1727835266609,18.8111,145.96,145.86,14.81]
[1727835267012,3.51401151,145.95,145.86,14.81]
[1727835267212,18.8111,145.96,145.86,14.81]
[1727835267411,22.186581,145.96,145.86,14.81]
[1727835267709,24.927781,145.96,145.92,2.7418]
[1727835268019,22.186581,145.96,145.86,14.81]
[1727835268516,2.7414,145.95,145.91,2.7419]
[1727835268914,2.7414,145.95,145.86,14.81]
[1727835269114,4.0011,145.96,145.88,14.81]
[1727835269510,2.7098,145.96,145.88,14.81]
[1727835269710,1.3372,145.96,145.95,2.7413]
[1727835269918,14.81,145.99,145.9,14.81]
[1727835270124,14.81,145.99,145.96,2.7411]
[1727835270417,74.04,146.0,145.96,2.7411]
[1727835273528,1.3068,146.01,145.96,2.7411]
[1727835275217,16.1168,146.01,145.96,2.7411]
[1727835275624,14.81,145.99,145.96,2.7411]
[1727835279121,17.5506,145.99,145.96,2.7411]
[1727835280029,14.81,145.99,145.9,14.81]
[1727835280230,17.5506,145.99,145.95,2.7411]
[1727835281024,2.7407,145.98,145.95,2.7411]
[1727835281526,14.81,145.99,145.95,2.7411]
[1727835281527,17.5506,145.99,145.95,2.7411]
[1727835282125,17.5506,145.99,145.9,14.81]
[1727835282329,14.81,145.99,145.96,2.7411]
[1727835283034,17.5506,145.99,145.96,2.7411]
[1727835285227,2.7408,145.98,145.95,2.7413]
[1727835285429,2.7408,145.98,145.9,14.81]
[1727835286225,2.7408,145.98,145.95,2.7413]
[1727835287127,2.7412,145.96,145.93,2.7416]
[1727835287433,14.93502,145.97,145.88,14.81]
[1727835287633,14.93502,145.97,145.95,2.7413]
[1727835288733,17.67592,145.97,145.94,2.7414]
[1727835289734,14.93502,145.97,145.95,2.7412]
[1727835292431,14.93502,145.97,145.9,14.81]
[1727835292432,0.12502,145.97,145.9,14.81]
[1727835292635,0.12502,145.97,145.96,2.7411]
[1727835292935,0.12502,145.97,145.9,14.81]
[1727835293234,0.12502,145.97,145.95,2.7413]
[1727835293431,14.93502,145.97,145.88,14.81]
[1727835293630,2.7414,145.95,145.92,2.7417]
[1727835293825,17.5514,145.95,145.92,2.7417]
[1727835294539,2.7415,145.94,145.92,2.7417]
[1727835295531,18.9141,145.95,145.92,2.7417]
[1727835296534,0.12502,145.97,145.9,14.81]
[1727835297128,0.12502,145.97,145.9,18.17187186]
[1727835297528,0.12502,145.97,145.96,2.7411]
[1727835300034,1.3627,146.02,146.0,2.7402]
[1727835300437,1.3627,146.02,145.95,2.734]
[1727835300633,1.3627,146.02,146.01,2.7402]
[1727835300832,1.3627,146.02,145.95,2.734]
[1727835300833,2.7404,146.01,145.95,2.734]
[1727835301040,1.3627,146.02,145.95,2.734]
[1727835301238,16.1727,146.02,145.95,2.734]
[1727835301840,2.7402,146.01,145.97,2.7408]
[1727835302045,1.3627,146.02,145.95,2.734]
[1727835302340,4.1028,146.02,145.98,2.7406]
[1727835302640,1.3627,146.02,145.98,2.7406]
[1727835303244,2.7403,146.01,145.98,2.7406]
[1727835303444,16.1727,146.02,145.97,2.7409]
[1727835303746,2.7404,146.0,145.97,2.7409]
[1727835304449,2.7406,145.99,145.96,2.7409]
[1727835305149,16.1727,146.02,145.92,15.1736]
[1727835305353,16.1727,146.02,145.93,1.3377]
[1727835305744,18.9128,146.02,145.93,1.3377]
[1727835306147,18.9128,146.02,145.99,2.7405]
[1727835306942,16.1727,146.02,145.94,14.81]
[1727835307143,0.12502,146.03,145.96,14.81]
[1727835307343,0.12502,146.03,145.98,14.81]
[1727835307549,0.12502,146.03,146.02,2.74]
[1727835309747,0.12502,146.03,146.01,2.7401]
[1727835309944,0.12502,146.03,145.94,5.4829]
[1727835309945,14.81,146.02,145.94,14.81]
[1727835310845,17.5501,146.02,145.99,2.7405]
[1727835311248,14.81,146.02,145.93,2.6408]
[1727835311447,17.5505,146.0,145.96,2.741]
[1727835311649,14.81,146.0,145.93,2.6408]
[1727835312054,1.3115,146.01,145.93,2.6408]
[1727835312055,1.3115,146.01,145.99,2.7405]
[1727835312251,0.12502,146.03,145.96,14.81]
[1727835312559,0.12502,146.03,146.01,2.7401]
[1727835312753,0.12502,146.03,145.96,14.81]
[1727835313254,0.12502,146.03,146.02,2.74]
[1727835316058,5.4749,146.16,145.98,3.48565965]
[1727835316059,2.7386,146.1,146.03,2.7397]
[1727835316262,14.93502,146.09,146.01,14.81]
[1727835317152,17.67372,146.09,146.01,14.81]
[1727835317351,2.86372,146.09,146.01,14.81]
[1727835317860,0.12502,146.09,146.06,2.7391]
[1727835318256,0.12502,146.09,146.01,14.81]
[1727835318461,0.12502,146.09,146.07,2.7389]
[1727835319351,0.12502,146.09,146.08,2.7389]
[1727835320556,0.12502,146.09,146.07,2.739]
[1727835322860,2.739,146.08,146.05,2.7394]
[1727835323861,17.67372,146.09,146.06,2.7392]
[1727835326968,17.67372,146.09,146.01,1.3183]
[1727835326969,14.93502,146.09,146.01,1.3183]
[1727835327158,2.7393,146.06,146.03,2.7397]
[1727835328066,2.7393,146.06,146.0,1.2717]
[1727835328265,2.7393,146.06,146.04,2.7396]
[1727835328467,14.81,146.07,146.0,1.2717]
[1727835328664,14.81,146.07,146.02,2.7398]
[1727835328856,14.81,146.07,145.97,14.93502]
[1727835329367,2.7394,146.06,146.02,2.7399]
[1727835331863,2.7394,146.06,146.03,2.7398]
[1727835333168,2.7395,146.05,146.02,2.7399]
[1727835333366,2.7395,146.05,145.97,14.93502]
[1727835334070,2.7395,146.05,145.99,2.7405]
[1727835334369,14.81,146.01,145.97,0.12502]
[1727835334574,14.81,145.99,145.97,0.12502]
[1727835335261,14.81,146.01,145.97,0.12502]
[1727835335466,17.5503,146.01,145.98,2.7406]
[1727835335671,14.81,146.01,145.97,0.12502]
[1727835335965,14.81,146.03,145.97,0.12502]
[1727835336172,4.1038,146.04,146.01,2.7401]
[1727835337477,14.81,146.05,145.97,0.12502]
[1727835338371,4.0101,146.06,146.03,2.7397]
[1727835339066,4.0101,146.06,145.98,14.81]
[1727835339067,4.0101,146.06,146.02,2.7399]
[1727835340078,1.395,146.08,145.98,14.81]
[1727835340264,0.12502,146.09,146.02,14.81]
[1727835341165,0.12502,146.09,146.08,2.7389]
[1727835348079,0.12502,146.15,146.06,14.81]
[1727835348278,0.12502,146.15,146.08,14.81]
[1727835348776,0.12502,146.15,146.1,2.7385]
[1727835348976,0.12502,146.15,146.07,1.3041]
[1727835348977,2.86272,146.15,146.07,1.3041]
[1727835349486,2.7378,146.14,146.09,2.7386]
[1727835349677,0.12502,146.15,146.07,1.3041]
[1727835349877,14.81,146.14,146.05,14.81]
[1727835350076,14.81,146.14,146.09,2.7386]
[1727835350579,14.81,146.14,146.05,14.81]
[1727835350779,14.81,146.14,146.08,2.7388]
[1727835350977,14.81,146.14,146.05,14.81]
[1727835351471,2.738,146.13,146.09,2.7386]
[1727835352474,14.81,146.14,146.05,14.81]
[1727835352672,0.12502,146.15,146.07,2.739]
[1727835352673,2.7384,146.11,146.07,2.739]
[1727835352880,14.81,146.12,146.04,80.99865138]
[1727835353779,17.5483,146.12,146.08,2.7388]
[1727835353969,14.81,146.12,146.08,2.7388]
[1727835355280,2.7383,146.11,146.08,2.7388]
[1727835356377,14.81,146.12,146.04,80.99865138]
[1727835356580,14.81,146.1,146.06,2.7391]
[1727835356780,14.81,146.1,146.04,80.99865138]
[1727835357186,17.5486,146.1,146.05,2.7393]
[1727835357388,17.5486,146.1,146.04,80.99865138]
[1727835357786,17.5486,146.1,146.06,2.7391]
[1727835358380,14.81,146.1,146.04,80.99865138]
[1727835358686,2.7388,146.09,146.05,2.7393]
[1727835359481,2.739,146.08,146.04,2.7396]
[1727835359682,14.81,146.08,146.04,2.7396]
[1727835360488,14.81,146.08,146.03,2.86482]
[1727835360693,14.81,146.08,146.03,0.12502]
[1727835360983,2.7391,146.07,146.04,2.7395]
[1727835361191,14.81,146.08,146.03,0.12502]
[1727835362287,6.05125304,146.1,146.03,0.12502]
[1727835362288,14.81,146.06,146.03,0.12502]
[1727835362993,17.5494,146.06,146.03,0.12502]
[1727835363485,2.7396,146.04,146.03,0.12502]
[1727835363689,14.81,146.06,146.03,0.12502]
[1727835364885,2.7395,146.05,146.03,0.12502]
[1727835365392,2.7396,146.04,146.03,0.12502]
[1727835366496,2.7396,146.04,145.98,1.2916]
[1727835366497,2.7402,146.01,145.98,2.7407]
[1727835366887,14.81,146.02,145.97,0.12502]
[1727835367093,14.81,146.0,145.97,0.12502]
[1727835367690,2.7407,145.98,145.97,0.12502]
[1727835369278,4.68851047,146.02,145.97,0.12502]
[1727835369488,14.81,146.01,145.97,0.12502]
[1727835370793,14.81,145.99,145.97,0.12502]
[1727835373285,17.5506,145.99,145.97,0.12502]
[1727835373490,14.81,145.99,145.97,0.12502]
[1727835374395,2.7407,145.98,145.97,0.12502]
[1727835379593,12.2207,145.98,145.97,0.12502]
[1727835382991,9.48,145.98,145.91,0.12502]
[1727835383200,9.48,145.92,145.91,0.12502]
[1727835384691,9.48,145.92,145.91,2.86712]
[1727835384893,9.48,145.93,145.91,2.86712]
[1727835385302,1.2982,145.96,145.91,0.12502]
[1727835385499,1.4018,145.97,145.91,0.12502]
[1727835387299,14.81,145.99,145.91,0.12502]
[1727835388009,14.81,145.99,145.96,2.7409]
[1727835388302,1.39,146.0,145.91,14.93502]
[1727835388499,2.5771,146.01,145.91,0.12502]
[1727835388703,2.5771,146.01,145.99,2.7404]
[1727835388704,1.2709,146.01,145.99,2.7404]
[1727835388906,4.0111,146.01,145.93,14.81]
[1727835389092,16.0809,146.01,145.94,2.7415]
[1727835389293,16.0809,146.01,145.91,14.93502]
[1727835389503,2.7405,146.0,145.91,14.93502]
[1727835389693,16.0809,146.01,145.91,14.93502]
[1727835389900,14.93502,146.03,145.93,14.81]
[1727835390100,0.12502,146.03,145.95,14.81]
[1727835390303,0.12502,146.03,146.01,2.74]
[1727835391309,2.74,146.02,145.99,2.7405]
[1727835391701,14.81,146.01,145.94,2.6973]
[1727835392601,2.7406,145.99,145.96,2.741]
[1727835393111,2.7404,146.0,145.96,2.741]
[1727835393296,14.81,146.01,145.95,2.7412]
[1727835393495,16.1319,146.01,145.91,0.12502]
[1727835394996,2.7407,145.99,145.91,0.12502]
[1727835395199,14.81,145.99,145.91,0.12502]
[1727835395400,2.7408,145.98,145.91,0.12502]
[1727835395605,2.7408,145.98,145.95,2.7412]
[1727835396205,17.5506,145.99,145.95,2.7412]
[1727835396803,14.81,145.99,145.95,2.7412]
[1727835397004,2.7409,145.98,145.95,2.7412]
[1727835397507,14.81,145.99,145.91,0.12502]
[1727835397708,17.5506,145.99,145.96,2.7411]
[1727835400914,14.81,145.99,145.91,0.12502]
[1727835401111,2.7408,145.98,145.91,0.12502]
[1727835401715,2.7408,145.98,145.95,2.7411]
[1727835402310,17.5511,145.97,145.93,2.7416]
[1727835402516,14.81,145.97,145.91,0.12502]
[1727835403621,17.5509,145.97,145.91,0.12502]
[1727835406920,17.5509,145.97,145.94,2.7415]
[1727835407918,14.81,145.97,145.91,0.12502]
[1727835408119,14.81,145.99,145.91,0.12502]
[1727835408717,17.5507,145.99,145.91,0.12502]
[1727835409019,14.81,145.99,145.91,0.12502]
[1727835410436,17.5506,145.99,145.96,2.741]
[1727835410733,14.81,145.99,145.96,2.741]
[1727835411331,17.5506,145.99,145.96,2.741]
[1727835411837,2.741,145.97,145.94,2.7414]
[1727835412632,2.741,145.97,145.91,0.12502]
[1727835412828,2.741,145.97,145.95,2.7413]
[1727835413028,2.7408,145.98,145.95,2.7413]
[1727835418933,17.5511,145.97,145.93,2.7416]
[1727835419132,14.81,145.95,145.91,0.12502]
[1727835419632,9.48,145.93,145.92,2.7418]
[1727835421139,9.48,145.94,145.91,0.12502]
[1727835421336,9.48,145.96,145.91,9.60502]
[1727835421536,16.0988,146.0,145.91,14.93502]
[1727835421843,1.2888,146.0,145.93,14.81]
[1727835422033,1.3219,146.01,145.92,2.5805]
[1727835422228,1.3969,146.02,145.95,14.81]
[1727835422429,1.3969,146.02,146.0,2.7402]
[1727835423035,1.3969,146.02,145.99,2.7405]
[1727835423742,1.3969,146.02,146.0,2.7403]
[1727835425435,1.3969,146.02,146.01,2.7402]
[1727835426533,1.3969,146.02,145.95,14.81]
[1727835426835,14.81,145.99,145.91,0.12502]
[1727835427236,2.6659,146.01,145.93,2.7415]
[1727835427237,2.7412,145.96,145.93,2.7415]
[1727835427433,14.81,145.97,145.91,0.12502]
[1727835427637,14.81,145.95,145.91,0.12502]
[1727835427843,2.7416,145.94,145.91,2.86692]
[1727835428030,2.7416,145.94,145.91,0.12502]
[1727835428031,14.81,145.93,145.91,0.12502]
[1727835428438,2.6659,145.94,145.91,0.12502]
[1727835428644,17.4759,145.94,145.91,0.12502]
[1727835429138,1.2972,145.93,145.85,9.24899]
[1727835429543,4.039,145.93,145.85,9.24899]
[1727835429738,1.2972,145.93,145.85,9.24899]
[1727835430247,1.2972,145.93,145.9,2.7422]
[1727835432342,4.0389,145.93,145.9,2.7422]
[1727835434144,14.81,145.92,145.9,2.7422]
[1727835434737,1.2972,145.93,145.91,2.7421]
[1727835435748,1.2972,145.93,145.87,2.7427]
[1727835435939,1.2972,145.93,145.85,24.05899]
[1727835436446,1.2972,145.93,145.87,2.7427]
[1727835436643,1.2972,145.93,145.85,24.05899]
[1727835436843,2.6659,145.94,145.87,14.81]
[1727835437043,74.14502,145.97,145.93,2.7417]
[1727835437251,74.14502,145.97,145.91,14.81]
[1727835437547,0.12502,145.97,145.91,14.81]
[1727835438140,0.12502,145.97,145.96,2.7411]
[1727835439541,0.12502,145.97,145.95,2.7412]
[1727835439742,0.12502,145.97,145.9,14.81]
[1727835439948,14.93502,145.97,145.85,9.24899]
[1727835440142,14.93502,145.97,145.92,2.7417]
[1727835440343,14.93502,145.97,145.86,14.81]
[1727835440344,14.81,145.95,145.86,14.81]
[1727835441649,2.7415,145.94,145.91,2.742]
[1727835441853,14.81,145.95,145.86,14.81]
[1727835442356,2.7416,145.94,145.9,2.7421]
[1727835443449,14.81,145.95,145.9,2.7421]
[1727835443450,2.7417,145.93,145.9,2.7421]
[1727835443645,14.81,145.93,145.89,2.7424]
[1727835444043,14.81,145.93,145.85,9.24899]
[1727835444355,2.742,145.92,145.89,2.7424]
[1727835444740,20.9462416,145.93,145.89,2.7424]
[1727835446149,14.81,145.91,145.85,9.24899]
[1727835447246,14.81,145.91,145.88,2.7425]
[1727835447247,17.5521,145.91,145.88,2.7425]
[1727835448452,2.7424,145.89,145.86,2.7429]
[1727835448647,1.3834,145.9,145.85,9.24899]
[1727835449244,14.81,145.89,145.85,9.24899]
[1727835449651,14.81,145.89,145.85,11.99209]
[1727835450458,2.7691,145.9,145.85,9.24899]
[1727835450965,1.3834,145.9,145.89,2.7424]
[1727835451162,1.3834,145.9,145.85,9.24899]
[1727835451859,1.3834,145.9,145.88,2.7425]
[1727835453456,1.3834,145.9,145.85,9.24899]
[1727835453664,1.3834,145.9,145.89,2.7424]
[1727835454765,1.3834,145.9,145.85,9.24899]
[1727835454964,1.3834,145.9,145.88,2.7426]
[1727835456453,1.3834,145.9,145.89,2.7424]
[1727835458762,1.3834,145.9,145.85,9.24899]
[1727835458955,4.1258,145.9,145.85,9.24899]
[1727835459261,4.1258,145.9,145.87,2.7428]
[1727835459762,2.7425,145.89,145.86,2.7429]
[1727835459954,1.3834,145.9,145.86,2.7429]
[1727835460158,2.7426,145.88,145.85,9.24899]
[1727835460464,14.81,145.89,145.85,9.24899]
[1727835460658,16.1915,145.89,145.85,9.24899]
[1727835461058,14.81,145.87,145.85,9.24899]
[1727835462060,2.743,145.86,145.85,9.24899]
[1727835465163,2.743,145.86,145.8,0.12518]
[1727835465164,1.3693,145.86,145.8,0.12518]
[1727835465359,14.81,145.83,145.8,0.12518]
[1727835465667,2.7439,145.82,145.8,0.12518]
[1727835466169,6.23612837,145.82,145.8,0.12518]
[1727835471667,2.7439,145.81,145.8,0.12518]
[1727835471875,3.49222837,145.82,145.8,0.12518]
[1727835472467,2.7439,145.81,145.8,0.12518]
[1727835476780,17.5539,145.81,145.8,0.12518]
[1727835480471,18.9,145.81,145.8,0.12518]
[1727835481182,18.9,145.81,145.73,0.12502]
[1727835481183,2.7448,145.77,145.74,2.7452]
[1727835481787,9.49,145.76,145.74,2.7452]
[1727835481981,9.49,145.78,145.73,9.61502]
[1727835482672,12.2345,145.78,145.73,9.61502]
[1727835482874,9.49,145.76,145.73,0.12502]
[1727835483087,9.49,145.79,145.75,9.49]
[1727835483279,9.49,145.79,145.78,2.7445]
[1727835483673,9.49,145.8,145.75,9.49]
[1727835483973,2.7436,145.83,145.76,9.49]
[1727835484285,9.49,145.82,145.77,9.49]
[1727835484684,9.49,145.83,145.81,2.7437]
[1727835484985,0.12502,145.85,145.82,9.49]
[1727835485485,0.12502,145.85,145.84,2.7434]
[1727835488982,14.81,145.9,145.82,1.281]
[1727835489188,0.12502,145.91,145.9,2.7422]
[1727835489587,14.93502,145.97,145.87,14.81]
[1727835489789,1.18426351,145.96,145.94,2.7415]
[1727835490592,1.18426351,145.96,145.9,1.4056]
[1727835490791,3.92546351,145.96,145.92,2.7417]
[1727835491094,14.93502,145.97,145.9,1.4056]
[1727835491095,1.18426351,145.95,145.9,1.4056]
[1727835491289,14.93502,145.97,145.9,1.4056]
[1727835491492,1.18420877,145.96,145.9,1.4056]
[1727835493198,1.18420877,145.96,145.95,2.7413]
[1727835493392,1.18417216,145.96,145.9,1.4056]
[1727835493989,1.18417216,145.96,145.91,14.81]
[1727835494695,1.18417216,145.96,145.91,15.1738]
[1727835495001,74.06,146.08,145.95,14.81]
[1727835495196,1.3526,146.08,146.0,14.81]
[1727835495789,1.3526,146.08,146.05,2.7393]
[1727835495993,1.17471125,146.07,146.01,1.3212]
[1727835496192,1.17471125,146.06,146.05,2.7393]
[1727835496395,1.17471125,146.08,146.05,2.7393]
[1727835496596,1.17471125,146.07,146.05,2.7393]
[1727835496798,1.17471125,146.06,146.05,2.7393]
[1727835496994,1.17471125,146.08,146.05,2.7393]
[1727835497193,1.17471125,146.07,146.05,2.7393]
[1727835497399,0.12502,146.09,146.05,2.7393]
[1727835497595,2.34939436,146.06,146.05,2.7393]
[1727835497795,1.17469718,146.06,146.05,2.7393]
[1727835498204,0.12502,146.09,146.08,2.7389]
[1727835499499,1.28151372,146.09,146.08,2.7389]
[1727835500096,2.86262,146.15,146.1,2.7383]
[1727835500808,2.7377,146.14,146.1,2.7383]
[1727835500996,0.12502,146.15,146.11,2.7382]
[1727835501302,1.14749777,146.13,146.11,2.7382]
[1727835501604,1.14749648,146.12,146.11,2.7382]
[1727835502606,1.14749648,146.12,146.07,2.7389]
[1727835502807,1.14749648,146.11,146.06,14.81]
[1727835503004,1.14749648,146.1,146.06,14.81]
[1727835503198,1.14749648,146.09,146.03,14.93502]
[1727835503398,1.14749648,146.08,146.03,14.93502]
[1727835503596,1.14749648,146.07,146.03,14.93502]
[1727835503793,14.81,146.12,146.03,18.31830709]
[1727835503999,1.14757907,146.11,146.04,14.81]
[1727835504206,1.14757907,146.1,146.04,14.81]
[1727835504402,1.14757907,146.09,146.04,14.81]
[1727835504602,1.14757907,146.08,146.04,14.81]
[1727835504797,1.14757907,146.07,146.04,14.81]
[1727835505001,1.14757907,146.06,146.03,0.12502]
[1727835505208,1.14757907,146.05,146.03,0.12502]
[1727835505406,14.81,146.1,146.06,2.7391]
[1727835505703,1.14762644,146.09,146.06,2.7391]
[1727835506100,1.14762644,146.09,146.08,2.7389]
[1727835506302,14.81,146.12,146.08,2.7389]
[1727835506303,1.14762644,146.11,146.08,2.7389]
[1727835506607,1.14762644,146.1,146.08,2.7389]
[1727835506808,1.14762644,146.09,146.08,2.7389]
[1727835507108,1.14762644,146.11,146.08,2.7389]
[1727835507304,1.14762644,146.1,146.03,14.93502]
[1727835507504,0.12502,146.15,146.05,14.81]
[1727835507505,1.14762644,146.09,146.05,14.81]
[1727835507713,1.14762644,146.08,146.05,14.81]
[1727835507904,0.12502,146.15,146.11,2.7382]
[1727835508710,2.86272,146.15,146.11,2.7382]
[1727835508913,1.1298036,146.14,146.11,2.7382]
[1727835509211,1.1298036,146.14,146.1,2.7385]
[1727835509410,0.12502,146.15,146.1,2.7385]
[1727835509601,1.12980317,146.14,146.1,2.7385]
[1727835509807,1.12980317,146.14,146.11,2.7383]
[1727835510003,1.12980268,146.13,146.11,2.7383]
[1727835510219,1.12980268,146.12,146.11,2.7383]
[1727835510714,1.12980268,146.14,146.11,2.7383]
[1727835511115,2.86272,146.15,146.11,2.7383]
[1727835511317,1.12980258,146.14,146.11,2.7383]
[1727835512822,1.12980258,146.14,146.05,14.81]
[1727835513113,1.12980258,146.14,146.12,2.738]
[1727835513518,1.12978131,146.13,146.12,2.738]
[1727835514119,1.12978131,146.14,146.07,14.81]
[1727835514315,1.12978131,146.13,146.12,2.7381]
[1727835514515,0.12502,146.15,146.03,3.58022206]
[1727835514516,1.12978131,146.14,146.05,14.81]
[1727835514722,2.7382,146.12,146.09,2.7386]
[1727835514920,1.12978131,146.11,146.09,2.7386]
[1727835515324,1.12978131,146.1,146.09,2.7386]
[1727835515526,1.12978131,146.12,146.09,2.7386]
[1727835515720,1.12978131,146.11,146.09,2.7386]
[1727835515921,1.12978131,146.12,146.09,2.7386]
[1727835516224,2.738,146.13,146.09,2.7386]
[1727835516225,1.12982494,146.11,146.09,2.7386]
[1727835516428,1.12982494,146.1,146.09,2.7386]
[1727835516917,1.12982494,146.1,146.09,2.7387]